Cogmind - Beta 13 --- EXPLORER MODE // 2024.05.29 @ 16:57:46 Player: Shippujinlai Result: Destroyed by P-70 Sage with Tesla Rifle Performance ------------- Evolutions (5) 2500 Regions Visited (8) 1600 Robots Destroyed (112) 560 Value Destroyed (3781) 3781 Prototype IDs (21) 420 Alien Tech Used (0) 0 Bonus (-7) -7 TOTAL SCORE: 8854 Bonus ------- Follower Combat Kills 381 Friendly Fire -388 Cogmind --------- Core Integrity 0/1000 Matter 300/300 Energy 315/315 System Corruption 11% Temperature Cool (0) Movement Walking (120) Location -5/Factory Parts ------- > --- POWER (2) -------- Neutrino Core > --- PROPULSION (3) --- Carbon-fiber Leg > --- UTILITY (8) ------ Improved Signal Interpreter Faulty Experimental Targeting Computer > --- WEAPON (5) ------- (None) > --- INVENTORY (5) ---- Huge Storage Unit Advanced Weight Redist. System Machine Analyzer Peak State ------------ > --- POWER ------------ Enhanced Nuclear Core Light Antimatter Reactor > --- PROPULSION ------- Titanium Leg Light Armored Exoskeleton Arachnoskeleton > --- UTILITY ---------- Armored Scrap Engine Medium Storage Unit Experimental Targeting Computer Reaction Control System Reaction Control System Authchip [R/Combat] Recalibrator > --- WEAPON ----------- Enhanced Autogun Gauss Rifle Katana > --- INVENTORY -------- Light Ion Engine Improved Deuterium Engine Micro Nuclear Core Huge Storage Unit Advanced Weight Redist. System Machine Analyzer Authchip [R/Combat] [Rating: 96] Favorites ----------- Power Enhanced Nuclear Core Engine Light Ion Engine Power Core Enhanced Nuclear Core Reactor Light Antimatter Reactor Propulsion Light Treads Treads Light Treads Leg Light Armored Exoskeleton Wheel Compact Wheel Utility Medium Storage Unit Device Recalibrator Storage Medium Storage Unit Processor Transport Network Coupler Hackware Authchip [R/Combat] Protection Improved Light Armor Plating Weapon Subdweller Machine Gun Energy Gun Small Laser Energy Cannon Beam Cannon Ballistic Gun Subdweller Machine Gun Ballistic Cannon Light Cannon Launcher Missile Launcher Special Weapon Flamer Slashing Weapon Katana Piercing Weapon Makeshift Spear Build | -11 -10 -10 -9 -7 -6 -6 -6 -5 ------- Run | Yrd Mat Sub Rec Fac Fac Low Low Fac Slots Evolved 11 | . 1 . . 6 2 . . 2 Power 1 | . . . . . 1 . . . Propulsion 1 | . . . . 1 . . . . Utility 6 | . 1 . . 4 1 . . . Weapon 3 | . . . . 1 . . . 2 Parts Attached 99 | 7 11 7 6 28 16 5 . 19 Power 21 | 1 1 2 1 4 8 . . 4 Engine 9 | 1 . 2 1 2 2 . . 1 Core 10 | . 1 . . 2 4 . . 3 Reactor 2 | . . . . . 2 . . . Propulsion 18 | 2 3 1 2 3 . 1 . 6 Treads 6 | 2 3 1 . . . . . . Leg 7 | . . . . 3 . 1 . 3 Wheel 5 | . . . 2 . . . . 3 Hover . | . . . . . . . . . Flight . | . . . . . . . . . Utility 33 | 2 3 1 3 15 5 . . 4 Device 14 | 1 . . 2 7 3 . . 1 Storage 5 | 1 2 . 1 1 . . . . Processor 4 | . 1 . . . 2 . . 1 Hackware 4 | . . . . 3 . . . 1 Protection 6 | . . 1 . 4 . . . 1 Artifact . | . . . . . . . . . Weapon 27 | 2 4 3 . 6 3 4 . 5 Energy Gun 3 | 1 . . . . . . . 2 Energy Cannon 3 | . 2 . . 1 . . . . Ballistic Gun 8 | 1 1 2 . 1 2 . . 1 Ballistic Cannon 2 | . 1 . . 1 . . . . Launcher 2 | . . . . 2 . . . . Special Weapon 1 | . . 1 . . . . . . Impact Weapon . | . . . . . . . . . Slashing Weapon 6 | . . . . 1 1 2 . 2 Piercing Weapon 2 | . . . . . . 2 . . Special Melee Weapon . | . . . . . . . . . Unidentified Prototypes 4 | . . . . 2 2 . . . Corrupted Parts 2 | . . . . 2 . . . . System Corruption 3 | . . . . 3 . . . . Parts Lost 41 | . 1 1 . 4 6 2 . 27 Power 8 | . 1 . . . 1 . . 6 Propulsion 10 | . . 1 . . 1 1 . 7 Utility 13 | . . . . 2 3 1 . 7 Weapon 10 | . . . . 2 1 . . 7 Highest Loss Streak 13 | . 1 1 . 3 3 2 . 13 To Critical Strikes 1 | . . . . . 1 . . . Average Slot Usage (%) 79 | . 88 88 90 70 71 77 81 65 Engine 2 | . 2 1 9 1 . . . 2 Core 4 | . 4 . . 3 5 11 12 5 Treads 10 | . 24 24 10 . . . . . Leg 7 | . . . . 16 14 11 12 7 Wheel 1 | . . . 14 . . . . 1 Device 12 | . 12 11 11 15 14 15 12 7 Storage 8 | . 12 12 12 5 5 5 6 4 Processor 6 | . 5 11 . . 3 11 12 12 Hackware 1 | . . . . . 5 5 6 2 Protection 2 | . . . 6 9 3 . . . Energy Cannon 2 | . 9 5 . . . . . . Ballistic Gun 6 | . 7 7 25 5 6 . . . Ballistic Cannon 3 | . 4 10 . . . . . . Launcher 1 | . . . . 6 1 . . . Slashing Weapon 2 | . . . . 1 6 5 6 10 Piercing Weapon 2 | . . . . . . 10 12 7 Naked Turns . | . . . . . . . . . Heaviest Build 114 | 17 22 41 111 114 49 35 32 48 Greatest Support 103 | 40 40 40 40 103 50 50 47 47 Greatest Overweight (x) 6 | . 6 2 6 1 . 1 . 5 Average Overweight (x) . | . . . 2 . . . . . Largest Inventory Capacity 25 | 10 25 10 25 25 10 10 10 10 Average Capacity 11 | 9 10 10 24 13 10 10 10 9 Most Carried 19 | 1 4 10 19 19 9 10 10 9 Average Carried 8 | . 3 7 13 9 7 9 10 7 Final Capacity 25 | 10 10 10 25 10 10 10 10 5 Final Carried 19 | 1 4 10 19 8 7 10 10 3 Scrap Engine Consumption 21 | . . . . 2 15 4 . . Constructs Created 3 | . . . . . 1 1 . 1 Constructs Modified 2 | . . . . . . 2 . . Class Distribution -------------------- 83% | Hacker-Mutant 6% | Scavenger-Tank 3% | Hacker-Tank 3% | Subdweller-Mutant Dominant Class ---------------- Hacker-Mutant | -10/Materials Hacker-Mutant | -10/Subcaves Hacker-Mutant | -9/Recycling Hacker-Mutant | -7/Factory Hacker-Mutant | -6/Factory Hacker-Mutant | -6/Lower Caves Hacker-Mutant | -6/Lower Caves Hacker-Mutant | -5/Factory Resources | -11 -10 -10 -9 -7 -6 -6 -6 -5 ----------- Run | Yrd Mat Sub Rec Fac Fac Low Low Fac Matter Collected 2454 | 288 232 437 88 680 457 80 . 192 Remotely 34 | . . . 34 . . . . . Salvage Created 5405 | 77 623 420 338 741 1182 589 . 1435 Parts 271 | 3 55 28 7 47 57 18 . 56 Haulers Intercepted 7 | . 2 . . 2 3 . . . Recyclers Shooed 5 | . 1 . 1 . . . . 3 Parts Field Recycled . | . . . . . . . . . Retrieved Matter . | . . . . . . . . . Parts Self-Destructed . | . . . . . . . . . Prevented . | . . . . . . . . . Kills | -11 -10 -10 -9 -7 -6 -6 -6 -5 ------- Run | Yrd Mat Sub Rec Fac Fac Low Low Fac Combat Hostiles Destroyed 75 | . 12 10 . 10 14 9 . 20 Melee 36 | . . . . 2 7 9 . 18 Guns 26 | . 7 5 . 6 6 . . 2 Cannons 11 | . 5 5 . 1 . . . . AOE 2 | . . . . 1 1 . . . Classes Destroyed 17 | 1 6 3 . 4 1 2 . . Worker 5 | . 1 . . . 3 . . 1 Builder 2 | . 2 . . . . . . . Hauler 7 | . 2 . . 2 3 . . . Recycler 12 | 1 1 . 5 2 1 . . 2 Mechanic 1 | . . . . 1 . . . . Operator 1 | . . . . 1 . . . . Turret 2 | . . 2 . . . . . . Watcher 6 | . 3 . . 1 . . . 2 Swarmer 14 | . 4 . . . 4 3 . 3 Grunt 25 | . 8 . . 1 3 3 . 10 Brawler 2 | . . . . 1 . 1 . . Duelist 1 | . . . . . . 1 . . Sentry 11 | . . 1 . 5 4 . . 1 Hunter 4 | . . . . . 2 . . 2 Programmer 9 | . . . . 4 1 . . 4 Subdweller 9 | . . 9 . . . . . . Mutant 1 | . . . . . . 1 . . Best Kill Streak 5 | 1 3 2 5 3 3 3 . 4 Combat Bots Only 4 | . 2 2 . 2 2 3 . 4 Max Kills in Single Turn 2 | 1 2 1 1 2 1 1 . 1 Gunslinging . | . . . . . . . . . Exploded 1 | . . . . 1 1 . . . Melee 1 | . . . . 1 1 1 . 1 Uniques/NPCs Destroyed . | . . . . . . . . . Combat | -11 -10 -10 -9 -7 -6 -6 -6 -5 -------- Run | Yrd Mat Sub Rec Fac Fac Low Low Fac Hostile Shots Fired 1189 | . 40 66 . 422 298 61 . 302 Missed 386 | . 15 25 . 166 105 15 . 60 Damage Taken 6905 | . 217 563 . 1542 1431 505 . 2647 Core 1543 | . 25 201 . 174 99 41 . 1003 Absorbed by Shields . | . . . . . . . . . Ignored by Resistances 4224 | . 135 266 . 1048 912 302 . 1561 Regen/Repaired (Parts) 476 | . . . . 95 181 200 . . Core Remaining (%) 66 | 100 . . 9 75 . . 83 . Volleys Fired 263 | 6 40 103 8 44 45 . . 17 Largest 3 | 2 2 2 2 3 2 . . 1 Hottest 135 | 60 95 135 60 96 53 . . 69 Shots Fired 444 | 12 79 167 16 80 73 . . 17 Gun 267 | 12 45 52 16 57 68 . . 17 Cannon 156 | . 34 114 . 8 . . . . Launcher 20 | . . . . 15 5 . . . Special 1 | . . 1 . . . . . . Kinetic 314 | 6 40 119 16 65 68 . . . Thermal 110 | 6 39 48 . . . . . 17 Explosive 20 | . . . . 15 5 . . . Electromagnetic . | . . . . . . . . . Robot Hit Streak 43 | 12 25 30 29 43 15 . . 10 Robot Miss Streak 2 | . 1 1 . 1 2 . . 1 Penetration Max 1 | . . . . . 1 . . . Secondary Targets 2 | . 1 1 . . . . . . Max Gunslinging Chain 1 | . 1 1 . . . . . . Shots Hit Robots 471 | 12 56 61 8 82 107 35 . 110 Core Hits 182 | 2 28 20 5 41 36 13 . 37 Critical Kills 1 | 1 . . . . . . . . Critical Parts Destroyed 6 | . . 1 . 5 . . . . Critical Strikes 36 | 1 . 3 . 6 6 5 . 15 Destroy 8 | 1 . 2 . 5 . . . . Blast 1 | . . 1 . . . . . . Sever 24 | . . . . 1 6 2 . 15 Impale 3 | . . . . . . 3 . . Melee Attacks 214 | . . . . 16 54 42 . 102 Impact . | . . . . . . . . . Slashing 169 | . . . . 16 54 16 . 83 Piercing 45 | . . . . . . 26 . 19 Sneak Attacks 14 | . . . . 1 8 . . 5 Combat Hostiles 1 | . . . . . 1 . . . Follow-up Attacks 32 | . . . . . . 4 . 28 Damage Inflicted 12827 | 143 892 980 193 2395 3174 1181 . 3869 Guns 3711 | 143 422 516 193 1161 1003 . . 273 Cannons 1013 | . 449 464 . 100 . . . . Explosions 747 | . . . . 598 149 . . . Melee 7301 | . . . . 514 2022 1181 . 3584 Ramming 55 | . 21 . . 22 . . . 12 Kinetic 3681 | 77 376 771 193 1261 1003 . . . Thermal 1043 | 66 495 209 . . . . . 273 Explosive 747 | . . . . 598 149 . . . Electromagnetic . | . . . . . . . . . Impact . | . . . . . . . . . Slashing 6206 | . . . . 514 2022 559 . 3111 Piercing 1095 | . . . . . . 622 . 473 Highest Corruption 11 | . . . . 7 . . . 11 Average Corruption 4 | . . . . 3 . . . 6 Corruption Purged . | . . . . . . . . . Corruption Blocked . | . . . . . . . . . Effects 51 | . . . . 34 . . . 17 Message Errors 11 | . . . . 7 . . . 4 Matter Fused 13 | . . . . 9 . . . 4 Heat Flow Errors 8 | . . . . 6 . . . 2 Energy Discharges 5 | . . . . 3 . . . 2 Parts Rejected 1 | . . . . . . . . 1 Parts Fused 2 | . . . . 1 . . . 1 Data Loss (minor) 4 | . . . . 3 . . . 1 Data Loss (major) 3 | . . . . 2 . . . 1 Misfires 1 | . . . . 1 . . . . Alerts 2 | . . . . 1 . . . 1 Weapon Failures 1 | . . . . 1 . . . . Overload Shots . | . . . . . . . . . Overflow Damage 362 | . . . . 17 52 105 . 188 Projectiles . | . . . . . . . . . Explosions . | . . . . . . . . . Melee 362 | . . . . 17 52 105 . 188 Knockbacks 2 | . . 2 . . . . . . Impact . | . . . . . . . . . Kinetic 2 | . . 2 . . . . . . Secondary . | . . . . . . . . . Self-Inflicted Damage . | . . . . . . . . . Shots . | . . . . . . . . . Rammed 3 | . 3 . . . . . . . Targets Rammed 9 | . 3 . . 1 . . . 5 Kicked 6 | . . . . 1 . . . 5 Crushed . | . . . . . . . . . Highest Temperature 437 | . 174 . . 275 437 . . 191 Average Temperature 58 | . 51 . . 71 58 . . 37 Received Heat Transfer 2061 | . 120 57 . 738 426 162 . 558 Effects 3 | . . . . 1 2 . . . Shutdowns 1 | . . . . . 1 . . . Interference 1 | . . . . 1 . . . . Damage (minor) 1 | . . . . . 1 . . . Siege Activations . | . . . . . . . . . Robots Corrupted . | . . . . . . . . . Combat Hostiles . | . . . . . . . . . Parts Fried . | . . . . . . . . . Impact Corruptions . | . . . . . . . . . Robots Melted . | . . . . . . . . . Combat Hostiles . | . . . . . . . . . Parts Melted 1 | . . . . 1 . . . . Heat Transferred 2189 | 150 1077 444 . . . . . 518 Parts Sabotaged . | . . . . . . . . . Parts Stolen . | . . . . . . . . . Parts Stripped . | . . . . . . . . . Power Chain Reactions . | . . . . . . . . . Alert | -11 -10 -10 -9 -7 -6 -6 -6 -5 ------- Run | Yrd Mat Sub Rec Fac Fac Low Low Fac Peak Influence 275 | 5 220 . 215 271 275 . . 229 Initial 182 | . 2 . 182 . 54 . . . Average 69 | 1 52 . 118 47 94 . . 82 Maximum Alert Level 1 | . 1 . 1 1 1 . . 1 Low Security (%) 88 | 100 93 . 68 88 85 . . 96 Level 1 11 | . 6 . 31 11 14 . . 3 Level 2 . | . . . . . . . . . Level 3 . | . . . . . . . . . Level 4 . | . . . . . . . . . Level 5 . | . . . . . . . . . High Security . | . . . . . . . . . Max Security . | . . . . . . . . . Squads Dispatched 17 | . 1 . . 3 5 . . 8 Investigation 4 | . 1 . . . . . . 3 Extermination 8 | . . . . 3 2 . . 3 Reinforcement 5 | . . . . . 3 . . 2 Assault . | . . . . . . . . . Garrison . | . . . . . . . . . Intercept . | . . . . . . . . . Searches Triggered . | . . . . . . . . . Construction Impeded . | . . . . . . . . . Haulers Reinforced 2 | . . . . . 2 . . . Active Scanning Responses . | . . . . . . . . . Cargo Convoy Interrupts 1 | . . . . . 1 . . . Stealth | -11 -10 -10 -9 -7 -6 -6 -6 -5 --------- Run | Yrd Mat Sub Rec Fac Fac Low Low Fac Distress Signals . | . . . . . . . . . Communications Jammed . | . . . . . . . . . Distress Signals . | . . . . . . . . . Times Spotted 113 | . 14 16 . 20 21 10 . 32 Peak Tracking Total 9 | . 2 3 . 6 3 3 . 9 Tactical Retreats 6 | . . 2 . . 1 1 . 2 Traps | -11 -10 -10 -9 -7 -6 -6 -6 -5 ------- Run | Yrd Mat Sub Rec Fac Fac Low Low Fac Traps Triggered 8 | . 2 3 . 1 1 . . 1 Indirectly . | . . . . . . . . . Trap Hack Attempts . | . . . . . . . . . Triggered . | . . . . . . . . . Disarmed . | . . . . . . . . . Reprogrammed . | . . . . . . . . . Reused . | . . . . . . . . . Traps Extracted . | . . . . . . . . . Installed . | . . . . . . . . . Triggered . | . . . . . . . . . Most Traps Carried 1 | . . 1 . . . . . . Machines | -11 -10 -10 -9 -7 -6 -6 -6 -5 ---------- Run | Yrd Mat Sub Rec Fac Fac Low Low Fac Machines Disabled 3 | . . 1 . 1 . 1 . . Max in Single Turn 1 | . . 1 . 1 . 1 . . Garrison Access 2 | . . . . 1 1 . . . Machines Repaired . | . . . . . . . . . Machines Dismantled . | . . . . . . . . . Machines Sabotaged . | . . . . . . . . . Overloaded Fab Kills . | . . . . . . . . . Hacking | -11 -10 -10 -9 -7 -6 -6 -6 -5 --------- Run | Yrd Mat Sub Rec Fac Fac Low Low Fac Machines Accessed 35 | . 9 1 2 8 9 2 . 4 Terminals 22 | . 8 . 2 4 6 . . 2 Fabricators 3 | . . . . 1 . . . 2 Repair Stations 2 | . . . . 1 1 . . . Recycling Units 2 | . 1 . . 1 . . . . Scanalyzers 1 | . . . . . 1 . . . Garrison Access 2 | . . . . 1 1 . . . Total Hacks 118 | . 39 9 2 23 25 2 . 18 Successful 76 | . 28 9 1 14 11 2 . 11 Failed 42 | . 11 . 1 9 14 . . 7 Catastrophic 2 | . . . . 1 . . . 1 Database Lockouts . | . . . . . . . . . Manual 31 | . 16 . 2 3 8 . . 2 Terminals 77 | . 38 . 2 12 16 . . 9 Fabricators 14 | . . . . 5 . . . 9 Repair Stations 6 | . . . . 2 4 . . . Recycling Units 3 | . 1 . . 2 . . . . Scanalyzers 3 | . . . . . 3 . . . Garrison Access 4 | . . . . 2 2 . . . Terminal Hacks 44 | . 19 9 1 5 3 2 . 5 Record 19 | . 3 8 . 1 2 1 . 4 Robot Schematic 2 | . 1 . . 1 . . . . Robot Analysis 6 | . 3 . . 2 . . . 1 Prototype ID Bank 3 | . 3 . . . . . . . Open Door 1 | . . . . . . 1 . . Level Access Points 1 | . . . 1 . . . . . Terminal Index 1 | . . . . . 1 . . . Scanalyzer Index 1 | . 1 . . . . . . . Alert Level 1 | . 1 . . . . . . . Locate Traps 2 | . 2 . . . . . . . Security Status 1 | . 1 . . . . . . . Transport Status 2 | . 2 . . . . . . . Hauler Manifests 1 | . 1 . . . . . . . Zone Layout 2 | . 1 . . 1 . . . . Derelict Proto ID Bank 1 | . . 1 . . . . . . Fabricator Hacks 11 | . . . . 5 . . . 6 Network Status 1 | . . . . . . . . 1 Load Schematic 5 | . . . . 2 . . . 3 Build 5 | . . . . 3 . . . 2 Repair Station Hacks 5 | . . . . 2 3 . . . Scan Component 3 | . . . . 1 2 . . . Repair 2 | . . . . 1 1 . . . Recycling Unit Hacks 1 | . . . . 1 . . . . Retrieve Components 1 | . . . . 1 . . . . Scanalyzer 3 | . . . . . 3 . . . Insert Component 2 | . . . . . 2 . . . Analyze 1 | . . . . . 1 . . . Garrison Access Hacks 2 | . . . . 1 1 . . . Seal Access 2 | . . . . 1 1 . . . Unauthorized Hacks 10 | . 9 . . . 1 . . . Terminals 9 | . 8 . . . 1 . . . Botnet 9 | . 8 . . . 1 . . . Fabricators . | . . . . . . . . . Repair Stations . | . . . . . . . . . Recycling Units 1 | . 1 . . . . . . . Recyclers 1 | . 1 . . . . . . . Scanalyzers . | . . . . . . . . . Garrison Access . | . . . . . . . . . Data Cores Recovered 1 | . . . . 1 . . . . Used . | . . . . . . . . . Hacking Detections 28 | . 7 . 2 6 9 . . 4 Full Trace Events 6 | . 3 . . . . . . 3 Feedback Events . | . . . . . . . . . Feedback Blocked . | . . . . . . . . . Robot Schematics Acquired 2 | . 1 . . 1 . . . . Robots Built 9 | . . . . 3 . . . 6 Authchips 4 | . . . . 2 . . . 2 Time 487 | . . . . 268 . . . 219 Total Robot Build Rating 39 | . . . . 12 . . . 27 Part Schematics Acquired 1 | . . . . . 1 . . . Parts Built 1 | . . . . 1 . . . . Authchips . | . . . . . . . . . Time 84 | . . . . 84 . . . . Total Part Build Rating 4 | . . . . 4 . . . . Parts Repaired 2 | . . . . 1 1 . . . Time 54 | . . . . 19 35 . . . Parts Recycled . | . . . . . . . . . Recycled Matter . | . . . . . . . . . Retrieved Matter . | . . . . . . . . . Retrieved Components 10 | . . . . 10 . . . . Parts Scanalyzed 1 | . . . . . 1 . . . Part Schematics Acquired 1 | . . . . . 1 . . . Parts Damaged . | . . . . . . . . . Bothacking | -11 -10 -10 -9 -7 -6 -6 -6 -5 ------------ Run | Yrd Mat Sub Rec Fac Fac Low Low Fac Used RIF Installer . | . . . . . . . . . Robots Hacked . | . . . . . . . . . Non-combat . | . . . . . . . . . Combat . | . . . . . . . . . Robot Hacks Applied . | . . . . . . . . . Relay Couplers Released . | . . . . . . . . . Fabnet Peak Effective % . | . . . . . . . . . Robots Rewired 1 | . . . . . 1 . . . Allies Hacked . | . . . . . . . . . Hacks Repelled . | . . . . . . . . . Allies | -11 -10 -10 -9 -7 -6 -6 -6 -5 -------- Run | Yrd Mat Sub Rec Fac Fac Low Low Fac Total Allies 13 | . . . . 6 1 . . 6 Largest Group 5 | . . . . 4 2 . . 5 Highest-Rated Group 127 | . . . . 93 50 . . 127 Highest-Rated Ally 31 | . . . . 31 31 . . 29 Total Orders 2 | . . . . . 2 . . . STAY 1 | . . . . . 1 . . . FOLLOW 1 | . . . . . 1 . . . Ally Attacks 118 | . . . . 38 39 . . 41 Total Damage 1841 | . . . . 651 542 . . 648 Kills 11 | . . . . 4 4 . . 3 Allies Corrupted . | . . . . . . . . . Allies Melted 1 | . . . . . . . . 1 Intel | -11 -10 -10 -9 -7 -6 -6 -6 -5 ------- Run | Yrd Mat Sub Rec Fac Fac Low Low Fac Robot Analysis Total 6 | . 3 . . 2 . . . 1 Derelict Logs Recovered 2 | . . 1 . . . 1 . . Drone Launches . | . . . . . . . . . Drone Recoveries . | . . . . . . . . . Exploration | -11 -10 -10 -9 -7 -6 -6 -6 -5 ------------- Run | Yrd Mat Sub Rec Fac Fac Low Low Fac Turns Passed 10359 | 111 1398 2526 674 1983 1353 1258 246 810 Spaces Moved 6076 | 54 570 1325 382 996 1038 1191 165 355 Core 24 | 3 1 . . . . . . 20 Treads 2010 | 51 569 1325 65 . . . . . Legs 3651 | . . . . 996 1038 1191 165 261 Wheels 391 | . . . 317 . . . . 74 Hover . | . . . . . . . . . Flight . | . . . . . . . . . Fastest Speed 50 | 50 160 160 125 90 90 90 150 50 Average Speed 128 | 153 160 162 165 115 90 97 150 150 Slowest Speed 350 | 160 350 320 320 210 90 193 150 301 Overloaded Moves . | . . . . . . . . . Propulsion Burnouts . | . . . . . . . . . Robots Hopped . | . . . . . . . . . Cave-ins Triggered . | . . . . . . . . . Exploration Rate (%) 43 | 5 91 59 53 28 25 99 24 8 Regions Visited 8 Branch Regions 4 Pre-discovered Areas 3 | . . 2 . . . 1 . . Known Exits Taken 8 | 1 1 1 1 1 1 1 1 . Unknown Exits Taken . | . . . . . . . . . Scrap Searched 10 | . . 4 . . . 5 1 . Spaces Dug 5 | . . . 2 . 2 1 . . Terrain Destroyed 139 | . . . 3 110 25 1 . . Melee 3 | . . . . . 2 1 . . Projectile 3 | . . . 3 . . . . . AOE 133 | . . . . 110 23 . . . Terrain Rammed . | . . . . . . . . . Walls Destroyed . | . . . . . . . . . Machines Disabled . | . . . . . . . . . Actions | -11 -10 -10 -9 -7 -6 -6 -6 -5 --------- Run | Yrd Mat Sub Rec Fac Fac Low Low Fac Total 7924 | 67 969 1527 408 1733 1315 1241 164 500 Wait 1229 | . 341 73 2 622 153 5 . 33 Move 6068 | 53 569 1324 381 995 1037 1190 164 355 Hop . | . . . . . . . . . Pick Up 27 | 1 1 10 7 7 . . . 1 Fast Attach 64 | 7 9 3 4 13 12 4 . 12 Attach 27 | . . 2 1 13 4 . . 7 Detach 12 | . . 1 1 4 3 3 . . Swap 8 | . 2 2 1 2 . 1 . . Drop 35 | . 4 8 3 16 4 . . . Fire 263 | 6 40 103 8 44 45 . . 17 Melee 175 | . . . . 16 54 35 . 70 Ram . | . . . . . . . . . Kick 6 | . . . . 1 . . . 5 Crush 3 | . 3 . . . . . . . Escape Stasis . | . . . . . . . . . Rewire 6 | . . . . . 3 3 . . Trap . | . . . . . . . . . Miscellaneous 1 | . . 1 . . . . . . Route ------- -11/Scrapyard -10/Materials (discovered 5 exits: *Mat x2 / *Min x2 / *Sub) -10/Subcaves -9/Recycling -7/Factory -6/Factory -6/Lower Caves -6/Lower Caves -5/Factory (discovered 1 exit: *Upp) History --------- Turn | Location | Event 33 | -11/Scrapyard | Identified exit to Materials 33 | -11/Scrapyard | Discovered exit to Materials (range 15) 112 | -11/Scrapyard | Entered Materials 112 | -10/Materials | Evolved 1 slot: Utility x1 304 | -10/Materials | Build established: Hacker-Mutant 495 | -10/Materials | Identified exit to Mines 495 | -10/Materials | Discovered exit to Mines (range 10) 817 | -10/Materials | Identified exit to Materials 817 | -10/Materials | Discovered exit to Materials (range 3) 1013 | -10/Materials | Discovered exit to Mines (range 12) 1120 | -10/Materials | Discovered exit to Materials (range 14) 1232 | -10/Materials | Identified exit to Subcaves 1232 | -10/Materials | Discovered exit to Subcaves (range 5) 1510 | -10/Materials | Entered Subcaves 1514 | -10/Subcaves | A swath of the cavern ceiling suddenly collapsed 1619 | -10/Subcaves | Ambushed by Subdwellers from Twisted Machinery 1971 | -10/Subcaves | Learned location of Zion (-6) 2396 | -10/Subcaves | Core integrity fell below 50% 2565 | -10/Subcaves | Shifting Twisted Machinery released Scrap Shield 2586 | -10/Subcaves | Shifting Twisted Machinery released Flamer 2643 | -10/Subcaves | Met a Zionite searching for "candidates" 3023 | -10/Subcaves | Visited 4L-MR0's lab 3085 | -10/Subcaves | Found Arachnoskeleton 3742 | -10/Subcaves | Shifting Twisted Machinery released Flamer 3780 | -10/Subcaves | Ambushed by Subdwellers from Twisted Machinery 3843 | -10/Subcaves | Shifting Twisted Machinery released Riot Gun 3900 | -10/Subcaves | Core integrity fell below 20% 3969 | -10/Subcaves | Identified exit to Recycling 3969 | -10/Subcaves | Discovered exit to Recycling (range 15) 4036 | -10/Subcaves | Entered Recycling 4093 | -9/Recycling | Found Scrap Engine 4174 | -9/Recycling | Identified exit to Factory 4188 | -9/Recycling | Build established: Subdweller-Mutant 4556 | -9/Recycling | Build established: Hacker-Mutant 4710 | -9/Recycling | Entered Factory 4710 | -7/Factory | Evolved 6 slots: Propulsion x1, Utility x4, Weapon x1 4713 | -7/Factory | Attached Arachnoskeleton, gained temporary slots: Propulsion x3 5209 | -7/Factory | Lost 3 parts (2u1w) 5503 | -7/Factory | Allied Derelicts emerged from ambush trap array 5595 | -7/Factory | Build established: Scavenger-Tank 5934 | -7/Factory | Repaired Imp. Light Armor Plating 6349 | -7/Factory | Build established: Hacker-Mutant 6358 | -7/Factory | Fabricated Kinecellerator (x1) 6494 | -7/Factory | Fabricated B-48 Gladiator (x3) 6626 | -7/Factory | Identified exit to Factory 6626 | -7/Factory | Discovered exit to Factory (range 15) 6693 | -7/Factory | Entered another Factory area 6693 | -6/Factory | Accompanied by 2 allies 6693 | -6/Factory | Evolved 2 slots: Power x1, Utility x1 7083 | -6/Factory | Lost 3 parts (2u1w) 7162 | -6/Factory | Identified exit to Lower Caves 7162 | -6/Factory | Discovered exit to Lower Caves (range 11) 7383 | -6/Factory | Found Prototype Processor 7383 | -6/Factory | Identified Exp. Targeting Computer 7451 | -6/Factory | Repaired Enh. Nuclear Core 7695 | -6/Factory | Cargo convoy interrupted 8046 | -6/Factory | Entered Lower Caves 8093 | -6/Lower Caves | Attacked by a delusional Derelict stockpiling parts 8423 | -6/Lower Caves | Encountered a Warlord checkpoint 9265 | -6/Lower Caves | Identified exit to Lower Caves 9265 | -6/Lower Caves | Discovered exit to Lower Caves (range 4) 9304 | -6/Lower Caves | Entered another Lower Caves area 9465 | -6/Lower Caves | Identified exit to Factory 9465 | -6/Lower Caves | Discovered exit to Factory (range 10) 9550 | -6/Lower Caves | Entered Factory 9550 | -5/Factory | Evolved 2 slots: Weapon x2 9703 | -5/Factory | Identified exit to Upper Caves 9703 | -5/Factory | Discovered exit to Upper Caves (range 11) 9960 | -5/Factory | Lost 3 parts (1n2u) 10109 | -5/Factory | Fabricated B-48 Gladiator? 10128 | -5/Factory | Fabricated G-50 Soldier? 10162 | -5/Factory | Lost 8 parts (2p2n1u3w) 10184 | -5/Factory | System corruption reached 10% 10238 | -5/Factory | Core integrity fell below 50% 10242 | -5/Factory | Lost 3 allies 10290 | -5/Factory | Core integrity fell below 20% 10360 | -5/Factory | Destroyed by P-70 Sage with Tesla Rifle Last Messages --------------- 10333_ Slug penetrates Wall. 10334_ System corrupted: Matter fused (-9). 10336_ Penetrated by Slug. 10336_ R-10 Processor collects Imp. Deuterium Engine. 10339_ Penetrated by Slug. 10344_ H-66 Slayer heat damages Targeting Computer, Targeting Computer, Gauss Rifle. 10344_ R-10 Processor collects Carbon-fiber Leg. 10344_ Slug penetrates Wall. 10344_ Penetrated by Slug. 10344_ Hvy. Laser destroyed. 10347_ R-10 Processor collects Adv. Heat Sink. 10350_ Slug penetrates Wall. 10351_ Acquired Carbon-fiber Leg. 10354_ Acquired 29 matter. 10355_ Kicked H-66 Slayer. 10356_ Penetrated by Slug. 10356_ Kicked H-66 Slayer. 10360_ Kicked H-66 Slayer out of the way. Map ----- +----------------------------------------------------+ | ##### %# #???# ## %% % + """ | | + # #???#??# = ##### # """ | | ###### ## #??????# =###?#% # """ | | ?????# ############??????#########???# #? | | ?????# #?????????????????????????????# #?######? | | ?????# #?????????????????????????????# #???????? | | ?????# #???????????????????########### % #???????? | | ?????# #???????????????????# # #???????? | | ######+#???????????????????# # #???????? | | % #???????????????????# """ """ # #???????? | | #???????????????????# """ """ + #???????? | | " #???????????????????# """ """ # [ ######### | | " #???????????????????# #!!!%| % | | " = #???????????????????# " F" #!![![[ %% | | " #???????????????????+ """" #% %! ! | | " "" #???????????????????########### %% [= %"%% | | " "" #??????????????????????##########+## % """ | | " T" #??????????????????????# *# =""" | | " "" #??????????????????????# """"""""" #% = | | " "" +??????????????????????# # ""% | | #??????????????????????# """"""""" # """ | | ########??????????########????# / F" | | ??????????????????# #????# """"""""" # " " | | ??????????????????# #????# # | | ??????????????????# * #######+##+#####/# %== | | ??????????????????# %%@h R ! %[*% | | ??????????????????# %%#p ############## ##### | | ??????????????????# ! # p#????????????# ##### | | ??????????????????######## #????????????# #???? | | ?????????????????????????# #????????????#%#???? | | ?????????????????????????# #????????????# #???? | | ?????????????????????????# R????????????# #???? | | ?????????????????????????# ##???????????# #???? | | ?????????????????????????# #????????????# #???? | | ?????????????????????????# #????????????# #???? | | ?????????????????????????# #?????????????%????? | | ?????????????????????????# #????????????? ????? | | ?????????????????????????# #?????????????%????? | | ?????????????????????????# #?????????????#????? | | ?????????????????????????# #??????????????????? | | ?????????????????????????# #??????????????????? | | ??????????????????????????####???????????????????? | | ?????????????????????????????????????????????????? | | ?????????????????????????????????????????????????? | | ?????????????????????????????????????????????????? | | ?????????????????????????????????????????????????? | | ?????????????????????????????????????????????????? | | ?????????????????????????????????????????????????? | | ?????????????????????????????????????????????????? | | ?????????????????????????????????????????????????? | +----------------------------------------------------+ Best States ------------- Heat Dissipation 40 Energy Generation 33 Energy Capacity 490 Matter Stores 300 Matter Capacity 300 Sight Range 16 Robot Scan Range 15 Terrain Scan Density 10 Additional Mass Support 9 Armor Coverage 800 Resistance: KI 35 Resistance: TH 35 Resistance: EX 35 Resistance: EM 35 Resistance: I 35 Resistance: S 35 Resistance: P 35 Evasion (%) 61 Target Analysis 5 Recoil Reduction 2 Offensive Hacking 20 Authchip Count 4 Item Schematics ----------------- Enh. Nuclear Core | -6/Factory | Scanalyzed Robot Schematics ------------------ O-16 Technician | -10/Materials | Hacked B-48 Gladiator | -7/Factory | Hacked Fabricated ------------ Kinecellerator | x1 | -7/Factory | Preloaded B-48 Gladiator | x3 | -7/Factory | Authchip B-48 Gladiator | x3 | -5/Factory | Authchip G-50 Soldier | x3 | -5/Factory | Preloaded, Authchip Alien Tech Used ----------------- None Achievements -------------- Deadly Force Challenges ------------ None Game ------ Seed ThunderEnergyGravjet Manual? 0 Play Time 01:26:50 Cumulative 50.8 hours Start 2024.05.29 @ 15:25:28 End 2024.05.29 @ 16:57:46 Sessions 1 Manual Loads 0 Difficulty Explorer Special Mode None Game No. 24 Rogue 0 Adventurer 19 Explorer 5 Win Type - Total 1 Types 1/0/0/0/0/0/0/0/0 Lore% 30 Gallery% 47 Achievement% 38 Wizard Run 0 Options --------- Layout 1 ASCII 0 Keyboard 0 Movement Mouse Keybinds 0 Fullscreen 0 Font 28/SmallcapsGlow Map View 50x40 Zoom Use 0% Tactical HUD 1 Map Filters NONE Filters NONE Steam 1 RUN: 22bb6612-2fcb-4ca0-8914-c145ad431f6f